Cogmind - Beta 16 @@@ ROGUE MODE // 2025.12.29 @ 17:12:53 Player: skilledspacepolice Result: Destroyed by H-61 Shepherd with Heavy Assault Cannon Performance ------------- Evolutions (3) 1500 Regions Visited (6) 1200 Robots Destroyed (56) 280 Value Destroyed (1563) 1563 Prototype IDs (3) 60 Alien Tech Used (0) 0 Bonus (516) 516 TOTAL SCORE: 5119 Bonus ------- High Alert Combat Kills 16 Entered DSFs 500 Cogmind --------- Core Integrity 0/700 Matter 29/300 Energy 99/100 System Corruption 0% Temperature Cool (0) Movement Core (150) Ox2 Location -7/DSF Parts ------- > --- POWER (1) -------- (None) > --- PROPULSION (4) --- (None) > --- UTILITY (6) ------ Signal Interpreter Improved Targeting Computer Improved Targeting Computer > --- WEAPON (2) ------- Magnetic Acceleration Cannon > --- INVENTORY (5) ---- Improved Targeting Computer Minigun Gauss Rifle Greatsword Peak State ------------ > --- POWER ------------ Light Deuterium Engine > --- PROPULSION ------- Flight Unit Flight Unit Flight Unit Cesium-ion Thruster > --- UTILITY ---------- Improved Heat Sink Signal Interpreter Improved Targeting Computer Improved Targeting Computer Improved Targeting Computer Light Armor Plating > --- WEAPON ----------- Greatsword > --- INVENTORY -------- Improved Targeting Computer Minigun Gauss Rifle Greatsword [Rating: 29] Favorites ----------- Power Light Ion Engine Engine Light Ion Engine Power Core Light Nuclear Core Propulsion Improved Hover Unit Leg Aluminum Leg Hover Unit Improved Hover Unit Flight Unit Flight Unit Utility Signal Interpreter Device Improved Heat Sink Storage Small Storage Unit Processor Signal Interpreter Hackware Hacking Suite Protection Medium Armor Plating Weapon Minigun Energy Gun Particle Gun Ballistic Gun Minigun Ballistic Cannon Assault Cannon Slashing Weapon Greatsword Build | -11 -10 -10 -9 -8 -7 -7 ------- Run | Yrd Mat Min Mat Mat Fac DSF Slots Evolved 6 | . . . 2 2 2 . Power . | . . . . . . . Propulsion 2 | . . . . 2 . . Utility 4 | . . . 2 . 2 . Weapon . | . . . . . . . Parts Attached 53 | 6 8 2 18 8 2 9 Power 11 | 1 2 1 3 3 . 1 Engine 10 | 1 2 1 3 3 . . Core 1 | . . . . . . 1 Reactor . | . . . . . . . Propulsion 11 | 2 3 . 4 2 . . Treads . | . . . . . . . Leg 2 | 2 . . . . . . Wheel . | . . . . . . . Hover 5 | . 3 . 2 . . . Flight 4 | . . . 2 2 . . Utility 12 | 1 1 . 6 1 2 1 Device 1 | . . . . . 1 . Storage 1 | 1 . . . . . . Processor 5 | . 1 . 3 . . 1 Hackware 2 | . . . 1 1 . . Protection 3 | . . . 2 . 1 . Artifact . | . . . . . . . Weapon 19 | 2 2 1 5 2 . 7 Energy Gun 6 | 2 2 . 2 . . . Energy Cannon . | . . . . . . . Ballistic Gun 6 | . . 1 3 2 . . Ballistic Cannon 6 | . . . . . . 6 Launcher . | . . . . . . . Special Weapon . | . . . . . . . Impact Weapon . | . . . . . . . Slashing Weapon 1 | . . . . . . 1 Piercing Weapon . | . . . . . . . Special Melee Weapon . | . . . . . . . Unidentified Prototypes 1 | . . . 1 . . . Parts Lost 27 | . 2 . 7 1 . 17 Power 3 | . . . 1 . . 2 Propulsion 8 | . 1 . 3 . . 4 Utility 5 | . . . 1 . . 4 Weapon 11 | . 1 . 2 1 . 7 Highest Loss Streak 9 | . 2 . 6 1 . 9 To Critical Strikes . | . . . . . . . Average Backups 5 | . 6 8 5 4 3 3 Power . | . . . . . . . Propulsion . | . 1 2 . . . . Utility 3 | . 4 6 3 3 2 1 Weapon . | . . . 1 1 1 2 Tool/Special . | . . . . . . . Unused Backups 6 | . . . 2 1 . 3 Power 1 | . . . 1 . . . Propulsion . | . . . . . . . Utility 3 | . . . 1 1 . 1 Weapon 2 | . . . . . . 2 Tool/Special . | . . . . . . . Average Slot Usage (%) 89 | . 89 98 91 93 97 55 Engine 10 | . 13 14 9 9 7 1 Hover 16 | . 21 28 17 . . . Flight 5 | . . . 1 30 30 7 Storage 6 | . 14 14 1 . . . Processor 19 | . 10 14 23 27 23 25 Hackware 4 | . . . 11 9 7 . Protection 2 | . . . 6 . 4 1 Energy Gun 12 | . 26 24 2 . . . Ballistic Gun 7 | . . 1 16 17 15 1 Peak Build Rating 29 | 6 10 10 21 24 27 29 Average Rating 14 | 3 8 9 17 22 26 17 On Entrance 13 | . 6 10 8 19 24 27 Avg Prop Armor Cover (%) . | . . . . . . . Naked Turns . | . . . . . . . Heaviest Build 21 | 12 13 13 16 13 15 21 Greatest Support 20 | 20 20 13 16 18 18 18 Greatest Overweight (x) 6 | . 3 2 3 1 . 6 Average Overweight (x) . | . . . . . . . Largest Inventory Capacity 8 | 8 8 8 8 5 5 5 Average Capacity 6 | 6 8 8 5 5 5 5 Most Carried 8 | 5 8 8 7 5 4 5 Average Carried 5 | 1 6 8 4 4 3 4 Final Capacity 8 | 8 8 8 5 5 5 5 Final Carried 8 | . 8 8 5 5 3 5 Class Distribution -------------------- 82% | Mutant 9% | Scavenger-Sprinter 5% | Sprinter Dominant Class ---------------- Mutant | -10/Materials Mutant | -10/Mines Mutant | -9/Materials Scavenger-Sprinter | -8/Materials Scavenger-Sprinter | -7/Factory Mutant | -7/DSF Resources | -11 -10 -10 -9 -8 -7 -7 ----------- Run | Yrd Mat Min Mat Mat Fac DSF Matter Collected 1399 | 237 103 116 461 316 . 166 Remotely . | . . . . . . . Salvage Created 1855 | . 213 183 1014 369 . 76 Parts 137 | . 14 14 74 30 . 5 Haulers Intercepted . | . . . . . . . Recyclers Shooed . | . . . . . . . Parts Field Recycled . | . . . . . . . Retrieved Matter . | . . . . . . . Parts Self-Destructed . | . . . . . . . Prevented . | . . . . . . . Parts Restored . | . . . . . . . Kills | -11 -10 -10 -9 -8 -7 -7 ------- Run | Yrd Mat Min Mat Mat Fac DSF Combat Hostiles Destroyed 51 | . 6 8 25 9 . 3 Guns 47 | . 6 7 25 9 . . Cannons 3 | . . . . . . 3 Classes Destroyed 7 | . 3 . 3 1 . . Recycler 1 | . . . 1 . . . Operator 2 | . 1 . . 1 . . Watcher 2 | . . . 1 1 . . Swarmer 21 | . 2 6 9 4 . . Grunt 20 | . 4 2 9 2 . 3 Sentry 9 | . . . 7 2 . . Hunter 1 | . . . . 1 . . Best Kill Streak 6 | . 2 4 6 6 . 3 Combat Bots Only 6 | . 2 4 5 6 . 3 Max Kills in Single Turn 2 | . 1 1 2 1 . 1 Gunslinging 1 | . . . 1 . . . Exploded . | . . . . . . . Melee . | . . . . . . . Uniques/NPCs Destroyed . | . . . . . . . Combat | -11 -10 -10 -9 -8 -7 -7 -------- Run | Yrd Mat Min Mat Mat Fac DSF Hostile Shots Fired 387 | . 39 42 148 49 . 109 Missed 120 | . 10 10 49 18 . 33 Hits 267 | . 29 32 99 31 . 76 Projectile 267 | . 29 32 99 31 . 76 Critical Strikes 5 | . . . 2 1 . 2 Damage Taken 4215 | . 344 301 1016 392 . 2162 Core 1281 | . 117 78 259 76 . 751 Absorbed by Shields . | . . . . . . . Redirected to Shielding 8 | . . . 8 . . . Regen/Repaired (Parts) 86 | . 44 . 42 . . . Core Remaining (%) 60 | 100 . 22 35 86 . . Volleys Fired 187 | . 29 24 70 36 . 28 Largest 2 | . 2 2 2 2 . 2 Hottest 115 | . 115 115 112 50 . 88 Shots Fired 336 | . 48 48 128 61 . 51 Gun 291 | . 48 48 128 61 . 6 Cannon 45 | . . . . . . 45 Launcher . | . . . . . . . Special . | . . . . . . . Kinetic 218 | . . . 106 61 . 51 Thermal 118 | . 48 48 22 . . . Explosive . | . . . . . . . Electromagnetic . | . . . . . . . Robot Hit Streak 10 | . 10 10 9 9 . 8 Robot Miss Streak 8 | . 6 8 6 3 . 3 Penetration Max . | . . . . . . . Secondary Targets 6 | . 1 1 4 . . . Max Gunslinging Chain 1 | . 1 1 1 . . . Shots Hit Robots 215 | . 29 24 81 46 . 35 Core Hits 89 | . 12 10 39 20 . 8 Critical Kills . | . . . . . . . Critical Parts Destroyed . | . . . . . . . Critical Strikes 5 | . 1 3 1 . . . Burn 5 | . 1 3 1 . . . Melee Attacks 4 | . . . . . . 4 Impact . | . . . . . . . Slashing 4 | . . . . . . 4 Piercing . | . . . . . . . Sneak Attacks . | . . . . . . . Combat Hostiles . | . . . . . . . Follow-up Attacks . | . . . . . . . Damage Inflicted 3605 | . 323 341 1288 761 . 892 Guns 2785 | . 323 341 1288 761 . 72 Cannons 726 | . . . . . . 726 Explosions . | . . . . . . . Melee 94 | . . . . . . 94 Ramming . | . . . . . . . Kinetic 2575 | . . . 1016 761 . 798 Thermal 936 | . 323 341 272 . . . Explosive . | . . . . . . . Electromagnetic . | . . . . . . . Impact . | . . . . . . . Slashing 94 | . . . . . . 94 Piercing . | . . . . . . . Highest Corruption . | . . . . . . . Average Corruption . | . . . . . . . Corruption Purged . | . . . . . . . Corruption Blocked . | . . . . . . . Overload Shots . | . . . . . . . Overflow Damage 8 | . . . . . . 8 Projectiles 8 | . . . . . . 8 Explosions . | . . . . . . . Melee . | . . . . . . . Knockbacks 1 | . . . . . . 1 Impact . | . . . . . . . Kinetic 1 | . . . . . . 1 Secondary . | . . . . . . . Self-Inflicted Damage . | . . . . . . . Shots . | . . . . . . . Rammed . | . . . . . . . Targets Rammed . | . . . . . . . Kicked . | . . . . . . . Crushed . | . . . . . . . Highest Temperature 542 | . 316 542 228 48 . . Average Temperature 127 | . 146 251 45 14 . . Received Heat Transfer 909 | . 177 60 339 108 . 225 Effects 18 | . 2 16 . . . . Shutdowns 4 | . . 4 . . . . Energy Bleed 3 | . 1 2 . . . . Interference 3 | . 1 2 . . . . Matter Decay 3 | . . 3 . . . . Damage (minor) 2 | . . 2 . . . . Damage (major) 3 | . . 3 . . . . Siege Activations . | . . . . . . . Martial Activations . | . . . . . . . Shielding Activations . | . . . . . . . Robots Disrupted . | . . . . . . . Combat Hostiles . | . . . . . . . Robots Corrupted . | . . . . . . . Combat Hostiles . | . . . . . . . Parts Fried . | . . . . . . . Impact Corruptions . | . . . . . . . Robots Melted 1 | . . 1 . . . . Combat Hostiles 1 | . . 1 . . . . Parts Melted 4 | . 1 2 1 . . . Heat Transferred 2624 | . 811 1147 666 . . . Parts Sabotaged . | . . . . . . . Parts Stolen . | . . . . . . . Parts Stripped . | . . . . . . . Power Chain Reactions . | . . . . . . . Alert | -11 -10 -10 -9 -8 -7 -7 ------- Run | Yrd Mat Min Mat Mat Fac DSF Maximum Alert Level 2 | . . . 2 1 . . Low Security (%) 88 | 100 100 100 72 73 100 100 Level 1 11 | . . . 26 26 . . Level 2 . | . . . . . . . Level 3 . | . . . . . . . Level 4 . | . . . . . . . Level 5 . | . . . . . . . High Security . | . . . . . . . Max Security . | . . . . . . . Peak Influence 407 | . 65 145 407 284 22 75 Initial 157 | . . . 24 157 22 18 Average 87 | . 15 65 162 148 22 26 Influence Increases 1619 | . 200 290 711 314 4 100 Destroy 0b10 Robot/C 1020 | . 120 160 500 180 . 60 Destroy 0b10 Robot/NC 25 | . 5 . 10 10 . . Destroy Leader 264 | . 30 40 132 52 . 10 Successful Hack 53 | . 15 . 7 27 4 . Disable Machine 45 | . . 15 . 30 . . Destroy Structure 2 | . . . 2 . . . Partial Spotted 75 | . . . 60 15 . . Lose Combat Pursuer 135 | . 30 75 . . . 30 Influence Decreases 1614 | . 200 227 399 639 28 121 Entered New Map 293 | . . . 39 218 28 8 Time Decay 863 | . 180 227 316 140 . . Lost Part 183 | . 20 . 40 10 . 113 Purge Threat 275 | . . . 4 271 . . Squads Dispatched 9 | . 2 . 4 2 . 1 Investigation 4 | . . . 3 1 . . Extermination . | . . . . . . . Reinforcement 5 | . 2 . 1 1 . 1 Assault . | . . . . . . . Garrison . | . . . . . . . Intercept . | . . . . . . . Searches Triggered . | . . . . . . . Construction Impeded . | . . . . . . . Haulers Reinforced . | . . . . . . . Active Scanning Responses . | . . . . . . . Cargo Convoy Interrupts . | . . . . . . . Stealth | -11 -10 -10 -9 -8 -7 -7 --------- Run | Yrd Mat Min Mat Mat Fac DSF Distress Signals 7 | . 2 . 3 2 . . Communications Jammed . | . . . . . . . Distress Signals . | . . . . . . . Times Spotted 88 | . 15 14 35 13 . 11 Peak Tracking Total 9 | . 4 4 9 6 . 6 Tactical Retreats 6 | . 1 3 . . . 2 Traps | -11 -10 -10 -9 -8 -7 -7 ------- Run | Yrd Mat Min Mat Mat Fac DSF Traps Triggered 1 | . . . 1 . . . Indirectly . | . . . . . . . Trap Hack Attempts . | . . . . . . . Triggered . | . . . . . . . Disarmed . | . . . . . . . Reprogrammed . | . . . . . . . Reused . | . . . . . . . Traps Extracted . | . . . . . . . Installed . | . . . . . . . Triggered . | . . . . . . . Machines | -11 -10 -10 -9 -8 -7 -7 ---------- Run | Yrd Mat Min Mat Mat Fac DSF Machines Disabled 3 | . . 1 . 2 . . Max in Single Turn 1 | . . 1 . 1 . . Machines Repaired . | . . . . . . . Machines Dismantled . | . . . . . . . Machines Sabotaged . | . . . . . . . Overloaded Fab Kills . | . . . . . . . Hacking | -11 -10 -10 -9 -8 -7 -7 --------- Run | Yrd Mat Min Mat Mat Fac DSF Machines Accessed 18 | . 5 . 9 3 1 . Terminals 13 | . 4 . 6 2 1 . Fabricators . | . . . . . . . Repair Stations 2 | . 1 . 1 . . . Recycling Units . | . . . . . . . Scanalyzers 3 | . . . 2 1 . . Garrison Access . | . . . . . . . Total Hacks 58 | . 14 . 33 10 1 . Successful 41 | . 9 . 23 8 1 . Failed 17 | . 5 . 10 2 . . Catastrophic 1 | . . . 1 . . . Database Lockouts . | . . . . . . . Manual . | . . . . . . . Terminals 34 | . 10 . 17 6 1 . Fabricators . | . . . . . . . Repair Stations 8 | . 4 . 4 . . . Recycling Units . | . . . . . . . Scanalyzers 16 | . . . 12 4 . . Garrison Access . | . . . . . . . Terminal Hacks 19 | . 5 . 8 5 1 . Prototype ID Bank 1 | . 1 . . . . . Open DSF 1 | . . . . . 1 . Level Access Points 1 | . . . . 1 . . Emergency Access Points 2 | . 1 . 1 . . . Alert Level 4 | . . . 2 2 . . Unreport Threat 3 | . . . 1 2 . . Locate Traps 1 | . . . 1 . . . Dispatch Records 1 | . 1 . . . . . Security Status 1 | . . . 1 . . . Investigation Status 1 | . 1 . . . . . Assault Status 1 | . . . 1 . . . Recall Investigation 1 | . . . 1 . . . Zone Layout 1 | . 1 . . . . . Fabricator Hacks . | . . . . . . . Repair Station Hacks 8 | . 4 . 4 . . . Scan Component 4 | . 2 . 2 . . . Repair 4 | . 2 . 2 . . . Recycling Unit Hacks . | . . . . . . . Scanalyzer 14 | . . . 11 3 . . Insert Component 5 | . . . 4 1 . . Analyze 5 | . . . 4 1 . . Retrieve Study 4 | . . . 3 1 . . Garrison Access Hacks . | . . . . . . . Unauthorized Hacks . | . . . . . . . Terminals . | . . . . . . . Fabricators . | . . . . . . . Repair Stations . | . . . . . . . Recycling Units . | . . . . . . . Scanalyzers . | . . . . . . . Garrison Access . | . . . . . . . Data Cores Recovered . | . . . . . . . Used . | . . . . . . . Hacking Detections 13 | . 3 . 7 3 . . Full Trace Events 3 | . . . 2 1 . . Feedback Events . | . . . . . . . Feedback Blocked . | . . . . . . . Robot Schematics Acquired . | . . . . . . . Robots Built . | . . . . . . . Authchips . | . . . . . . . Time . | . . . . . . . Total Robot Build Rating . | . . . . . . . Part Schematics Acquired 5 | . . . 4 1 . . Parts Built . | . . . . . . . Authchips . | . . . . . . . Time . | . . . . . . . Total Part Build Rating . | . . . . . . . Part Studies Acquired 3 | . . . 2 1 . . Parts Repaired 4 | . 2 . 2 . . . Time 122 | . 64 . 58 . . . Parts Recycled . | . . . . . . . Recycled Matter . | . . . . . . . Retrieved Matter . | . . . . . . . Retrieved Components . | . . . . . . . Parts Scanalyzed 5 | . . . 4 1 . . Part Schematics Acquired 5 | . . . 4 1 . . Parts Damaged . | . . . . . . . Bothacking | -11 -10 -10 -9 -8 -7 -7 ------------ Run | Yrd Mat Min Mat Mat Fac DSF Used RIF Installer . | . . . . . . . Robots Hacked . | . . . . . . . Non-combat . | . . . . . . . Combat . | . . . . . . . Robot Hacks Applied . | . . . . . . . Relay Couplers Released . | . . . . . . . Fabnet Peak Effective % . | . . . . . . . Robots Rewired . | . . . . . . . Allies Hacked . | . . . . . . . Hacks Repelled . | . . . . . . . Allies | -11 -10 -10 -9 -8 -7 -7 -------- Run | Yrd Mat Min Mat Mat Fac DSF Total Allies . | . . . . . . . Largest Group . | . . . . . . . Highest-Rated Group . | . . . . . . . Highest-Rated Ally . | . . . . . . . Total Orders . | . . . . . . . Ally Attacks . | . . . . . . . Total Damage . | . . . . . . . Kills . | . . . . . . . Allies Corrupted . | . . . . . . . Allies Melted . | . . . . . . . Intel | -11 -10 -10 -9 -8 -7 -7 ------- Run | Yrd Mat Min Mat Mat Fac DSF Active Infowar (turns) . | . . . . . . . Robot Analysis Total . | . . . . . . . Derelict Logs Recovered . | . . . . . . . Drone Launches . | . . . . . . . Drone Recoveries . | . . . . . . . Exploration | -11 -10 -10 -9 -8 -7 -7 ------------- Run | Yrd Mat Min Mat Mat Fac DSF Turns Passed 2455 | 45 596 522 730 312 18 232 Spaces Moved 2138 | 37 484 324 670 430 54 139 Core 135 | 14 3 . 35 . . 83 Treads . | . . . . . . . Legs 51 | 23 28 . . . . . Wheels . | . . . . . . . Hover 1379 | . 453 324 602 . . . Flight 573 | . . . 33 430 54 56 Fastest Speed 29 | 50 56 56 50 29 29 29 Average Speed 57 | 93 64 56 61 34 29 83 Slowest Speed 350 | 120 200 180 280 117 29 350 Overloaded Moves . | . . . . . . . Propulsion Burnouts . | . . . . . . . Robots Hopped . | . . . . . . . Potential Cave-ins . | . . . . . . . Cave-ins Triggered . | . . . . . . . Exploration Rate (%) 41 | 4 78 45 67 28 2 67 Regions Visited 6 Branch Regions 1 Pre-discovered Areas . | . . . . . . . Known Exits Taken 5 | . 1 1 1 1 1 . Unknown Exits Taken 1 | 1 . . . . . . Scrap Searched . | . . . . . . . Spaces Dug . | . . . . . . . Terrain Destroyed 3 | . . . . . . 3 Melee . | . . . . . . . Projectile 3 | . . . . . . 3 AOE . | . . . . . . . Terrain Rammed . | . . . . . . . Walls Destroyed . | . . . . . . . Machines Disabled . | . . . . . . . Actions | -11 -10 -10 -9 -8 -7 -7 --------- Run | Yrd Mat Min Mat Mat Fac DSF Total 3057 | 47 719 614 883 545 55 194 Wait 611 | . 176 262 105 56 . 12 Move 2132 | 36 483 323 669 429 53 139 Hop . | . . . . . . . Pick Up 34 | 5 16 . 6 6 . 1 Fast Attach 30 | 1 2 2 13 4 . 8 Attach 30 | 5 8 . 9 5 2 1 Detach 5 | . . . 2 2 . 1 Swap . | . . . . . . . Drop 24 | . 5 3 9 7 . . Fire 187 | . 29 24 70 36 . 28 Melee 4 | . . . . . . 4 Ram . | . . . . . . . Kick . | . . . . . . . Crush . | . . . . . . . Escape Stasis . | . . . . . . . Rewire . | . . . . . . . Trap . | . . . . . . . Miscellaneous . | . . . . . . . Route ------- -11/Scrapyard -10/Materials (discovered 3 exits: *Mat x2 / *Min) -10/Mines (discovered 2 exits: *Mat x2) -9/Materials (discovered 3 exits: *Mat x2 / *Min) -8/Materials (discovered 3 exits: *Fac x3) -7/Factory -7/DSF History --------- Turn | Location | Event 4 | -11/Scrapyard | Discovered new exit (range 15) 46 | -11/Scrapyard | Entered Materials 161 | -10/Materials | Discovered new exit (range 18) 184 | -10/Materials | Identified exit to Materials 309 | -10/Materials | Build established: Mutant 451 | -10/Materials | Discovered exit to Materials (range 4) 556 | -10/Materials | Discovered new exit (range 7) 598 | -10/Materials | Repaired Imp. Hover Unit 632 | -10/Materials | Repaired Particle Gun 642 | -10/Materials | Identified exit to Mines 642 | -10/Materials | Entered Mines 672 | -10/Mines | Core integrity fell below 50% 746 | -10/Mines | Discovered exit to Materials (range 11) 1128 | -10/Mines | Discovered exit to Materials (range 8) 1164 | -10/Mines | Entered Materials 1164 | -9/Materials | Evolved 2 slots: Utility x2 1174 | -9/Materials | Discovered new exit (range 15) 1182 | -9/Materials | Identified exit to Mines 1298 | -9/Materials | Lost 6 parts (1p2n1u2w) 1305 | -9/Materials | Core integrity fell below 50% 1491 | -9/Materials | Discovered new exit (range 16) 1498 | -9/Materials | Identified exit to Materials 1628 | -9/Materials | Repaired Lgt. Ion Engine+ 1661 | -9/Materials | Repaired Imp. Hover Unit+ 1869 | -9/Materials | Discovered exit to Materials (range 14) 1894 | -9/Materials | Entered another Materials area 1894 | -8/Materials | Evolved 2 slots: Propulsion x2 1905 | -8/Materials | Identified exit to Factory 2206 | -8/Materials | Entered Factory 2206 | -7/Factory | Evolved 2 slots: Utility x2 2224 | -7/Factory | Identified exit to DSF 2224 | -7/Factory | Entered DSF 2244 | -7/DSF | Additional patrols routed to DSF 2308 | -7/DSF | Lost 9 parts (1p4n2u2w) 2368 | -7/DSF | Lost 3 parts (1u2w) 2406 | -7/DSF | Core integrity fell below 50% 2421 | -7/DSF | Lost 3 parts (1u2w) 2450 | -7/DSF | Core integrity fell below 20% 2456 | -7/DSF | Destroyed by H-61 Shepherd with Heavy Assault Cannon Last Messages --------------- Acquired 22 matter. Destroyed Dynamic Insulation System. Acquired 20 matter. C-30 ARC bursts open, deploying its payload. H-55 Commando unfolds itself. Penetrated by Slug. Magnetic Acceleration Cannon destroyed. Knocked back. Acquired 4 matter. Penetrated by Slug. Acquired 1 matter. Acquired 7 matter. Lgt. Nuclear Core destroyed. Penetrated by Slug. Acquired 4 matter. Acquired 8 matter. Penetrated by Slug. C-30 ARC bursts open, deploying its payload. S-27 Virus unfolds itself. Penetrated by Slug. Map ----- +----------------------------------------------------+ | | | | | | | ???????????????????????????????????????????????? | | ???????????????????????????????????????????????? | | ???????????????????????????????????????????????? | | ???????????????????????????????????????????????? | | ???????????????????????????????????????????????? | | ???????????????????????????????????????????????? | | ???????????????????????????????????????????????? | | ???????????????????????===?????????????????????? | | ???????????????????????===!????????????????????? | | ??????????????????????? ????????????????????? | | ??????????????????????? ????????????????????? | | ??????????????????????# #????????????????????? | | ??????????????????????# ##???????????????????? | | ?????????????????????? ???????????????????? | | ?????????????????????? ????????????????????? | | ?????????????????????? ????????????????????? | | ????????????????????### ###??????????????????? | | ????????????????????#!!% !!#??????????????????? | | ????????????????????#!!% !!#??????????????????? | | ?????????????????????!! !!???????????????????? | | ????????????????###??## #?###############????? | | ????????????#/??# ?#% h ###]]]#]]]## !!#????? | | ?????????? ##///# ##a@ a##]]]"]]]"# !!#????? | | ???????? "%" % !!#????? | | ???????? " !!##???? | | ???????? s a !!"#???? | | ????????? ## #===##a ##!!!!===## % ##???? | | ????????????# ??#===?#; ;##%%!!===;# #????? | | ????????????????###?### ;;######;### ###????? | | ????????????????????#!! %]]#????###// #?????? | | ????????????????????#!! ]]#??????#// #?????? | | ????????????????????#!!%= #??????#// /#?????? | | ????????????????????###[ !##??????### ##?????? | | ????????????????????# =!!#??????#// #?????? | | ????????????????????# !!#??????#// #?????? | | ????????????????????# !!########## ##?????? | | ????????????????????### H;## # ### ###????? | | ????????????????????### %### # ## ""###??? | | ????????????????????# % """""#?? | | ????????????????????#% % ""##"#?? | | ????????????????????#==% # # ##"""""#????? | | ????????????????????#== #########"""""#????? | | ????????????????????##"%#"###???????##"####????? | | ?????????????????????# ###??????????#"#???????? | | ?????????????????????# #?????????????#""???????? | | ??????????????????????#???????????????##???????? | | ???????????????????????????????????????????????? | +----------------------------------------------------+ Best States ------------- Heat Dissipation 48 Energy Generation 14 Energy Capacity 265 Matter Stores 300 Matter Capacity 300 Sight Range 16 Terrain Scan Density 10 Armor Coverage 225 Propulsion Shielding 33 Evasion (%) 64 Targeting Accuracy 18 Offensive Hacking 10 Item Schematics ----------------- Imp. Targeting Computer | -9/Materials | Scanalyzed Propulsion Shielding | -9/Materials | Scanalyzed Imp. Medium Laser | -9/Materials | Scanalyzed Imp. Heat Sink | -9/Materials | Scanalyzed Cesium-ion Thruster | -8/Materials | Scanalyzed Robot Schematics ------------------ None Fabricated ------------ Nothing Repaired ---------- Imp. Hover Unit | 68% | -10/Materials Particle Gun | 56% | -10/Materials Lgt. Ion Engine | 22% | -9/Materials Imp. Hover Unit | 68% | -9/Materials Studied --------- Imp. Hover Unit | -9/Materials | Hacked Lgt. Ion Engine | -9/Materials | Hacked Cesium-ion Thruster | -8/Materials | Hacked Alien Tech Used ----------------- None Achievements -------------- Hydra Oops Challenges ------------ None Game ------ Seed PropulsionRainbowMegatreads Manual? 0 Play Time 00:44:10 Cumulative 14.9 hours Start 2025.12.29 @ 16:30:00 End 2025.12.29 @ 17:12:53 Sessions 1 Manual Loads 0 Difficulty Rogue Special Mode None Game No. 19 Rogue 19 Adventurer 0 Explorer 0 Win Type - Total 0 Types 0/0/0/0/0/0/0/0/0/0 Lore% 25 Gallery% 16 Achievement% 13 Wizard Run 0 Options --------- Layout 1 ASCII 0 Keyboard 0 Movement Mouse Keybinds 0 Fullscreen 1 Font 24/Smallcaps Map View 50x35 Zoom Use 0% Tactical HUD 0 Map Filters NONE Filters NONE Steam 1 RUN: 841cb6e0-2208-4a11-a85b-552b26523fa7